[Event "Seattle Chess Classic"]
[Site "Chess.com"]
[Date "2020.08.16"]
[Round "9"]
[White "Whale, Nicholas"]
[Black "Lenderman, Aleksandr"]
[Result "0-1"]
[ECO "E19"]
[WhiteElo "2065"]
[BlackElo "2717"]
[Annotator "Aleksandr Lenderman"]
[PlyCount "80"]
[EventDate "2020.??.??"]
[TimeControl "6000+30"]

{[%evp 0,80,19,29,18,2,2,-10,34,17,14,23,19,10,12,9,16,11,23,22,13,16,30,4,1,
-1,-10,-10,4,-13,-12,-23,-8,-1,-11,-16,-14,-11,-5,-5,-11,-11,-11,-4,-3,-9,26,
-10,-20,-13,-16,-16,-10,-20,-12,-26,-7,-7,-7,-35,-11,-4,-13,-99,-71,-112,-49,
-160,-206,-737,-806,-853,-888,-896,-916,-922,-928,-936,-951,-962,-887,-894,
-911] In the last round, I am playing against expert, Nicholas Whale, a local
Washington State player. This game like all my black games in this tournament
was also quite a struggle.} 1. Nf3 Nf6 2. c4 e6 3. Nc3 b6 {Inviting
complications after 4)e4.} 4. g3 (4. e4 Bb7) (4. d4 Bb7 5. e3 {Is what I
expected from my opponent since I thought he likes systems with e3.} d5 {
Here I was just going to go for this kind of a fight.}) 4... Bb7 5. Bg2 Be7 (
5... Bb4 6. O-O O-O 7. Qc2) 6. O-O O-O 7. d4 Ne4 {This is comfortable equality
for black I thought but how to win this, is another question.} 8. Qc2 (8. Bd2 {
This is the main line here.}) 8... Nxc3 9. Qxc3 Be4 (9... c5 {This might be
better but again, how to create winning chances?}) 10. Rd1 Bf6 11. Qe3 (11. Ne5
{This gives white some chances for an advantage.} Bxg2 12. Kxg2 c5 (12... d6
13. Qf3) 13. dxc5) 11... d5 12. Ne5 Bxg2 13. Kxg2 dxc4 14. Qf3 Qd5 15. Nxc4 {
Now here comes a very important critical moment.} Nc6 (15... Qxc4 {I was
trying hard to make this work but just couldn't.} 16. Qxa8 Nc6 17. Qb7 {
And here I calculated many lines but I just couldn't find something I really
liked.}) (15... Rd8 {I also looked at this but after Bf4 it seemed too drawish
to me.} 16. Bf4 $1) (15... Qxf3+ 16. Kxf3 Nc6 {I also considered this but
after e3 I didn't see how I can do much.} 17. e3) 16. Qxd5 exd5 17. Ne5 {
I didn't even see this, I only looked at Ne3.} Nxe5 18. dxe5 Bxe5 19. Rxd5 Rfe8
20. Rb1 Rad8 21. Rxd8 Rxd8 22. Be3 {This position is just equal but I was
hoping with my 3 on 2 majority on the queenside and control of the open file,
I might generate some winning chances.} f5 {I wanted to at least take away the
e4 square from the king.} (22... c5 23. f4 Bf6 24. Kf3) 23. b3 (23. b4 {
I was more concerned over this move.}) 23... c5 24. Rc1 Kf7 25. Kf3 Ke6 26. Rc2
a5 27. Rc4 (27. Rd2 $6 Rxd2 28. Bxd2 Kd5 {Here I thought I might have good
winning chances because my king gets to the center first and I can play c4
next move and create a passed pawn.}) 27... h5 (27... Rd1 {This right away
might've been better.} 28. h3 Rh1 29. Kg2 Rb1) 28. Bg5 Rd1 29. e4 {A strong
move.} Rh1 (29... Bd4 30. Be3 fxe4+ 31. Kxe4 b5 32. Rc2 {I was just not sure
about this position but I think this was the best winning try.} Re1 $15) 30.
exf5+ Kxf5 31. Bd8 {I didn't even see this move! Just total blindness. I was
lucky that I'm not actually worse here.} Rxh2 32. Bxb6 Bd4 33. Rc2 (33. g4+
hxg4+ 34. Kg3 Be5+ 35. f4 Rh3+ 36. Kg2 Bxf4 37. Rxc5+ Ke6 38. Rxa5 Rh2+ 39. Kg1
Rb2 40. Bd4 {Gave white good drawing chances but of course the line was
complicated.}) 33... g5 {I was lucky I had all this since I didn't foresee
this at all.} 34. Bxa5 $2 {This loses.} (34. Rxc5+ {I was very surprised he
didn't go for this since I didn't actually see how I'm winning here.} Bxc5 35.
Bxc5 Rh1 $2 {One of these rare occasions when the the engine is flat out wrong.
The engine screams for Rh1 and gives -3 for black but in fact I think it's
just a fortress.} (35... g4+ {My intension was to play this to not allow the
king to get to g2.} 36. Ke3 Rh1 37. Bb6 (37. Bd4 Re1+ 38. Kd2 Rf1 39. Bb6 Ke4 {
I might not be winning but I thought my winning chances are good here.}) 37...
Ra1 38. Bxa5 Rxa2 {And here I was hoping that I'm winning.}) 36. Bb6 Ra1 37.
Bxa5 Rxa2 38. b4 Rb2 39. Kg2 {I don't think this is winnable.} g4 (39... h4 40.
gxh4 gxh4 41. Kh3) (39... Kg4 40. Bc7 Rxb4 41. Be5 h4 42. gxh4 gxh4 43. Bd6 h3+
44. Kh2 Rb2 45. Bc5 $11) 40. Bb6 Rxb4 41. Bc5 $11) 34... g4+ 35. Ke2 Rxf2+ 36.
Kd1 Rxc2 37. Kxc2 h4 {My guess is that my opponent only calculated Ke4 and
bishop moves, but missed h4.} 38. gxh4 g3 39. Bc7 Be5 40. Bb6 Bd6 {AlexanderL
won by resignation. My pawn queens. I was very happy to finish the last day
with two wins. However, both of these games were quite tough. I never felt
like I had that much control of the result until the very end.} 0-1

[Event "Seattle Chess Classic (Reserve)"]
[Site "Chess.com"]
[Date "2020.08.13"]
[Round "3"]
[White "Morris, Brian L"]
[Black "Nallabothula, Varin"]
[Result "0-1"]
[ECO "C24"]
[WhiteElo "1382"]
[BlackElo "1293"]
[Annotator "Varin Nallabothula"]
[PlyCount "100"]
[EventDate "2020.??.??"]
[TimeControl "6000+30"]
[WhiteClock "1:44:31"]
[BlackClock "0:29:55"]

{[%evp 0,100,25,16,10,0,0,-18,-9,-9,47,19,36,32,22,42,53,15,43,50,55,33,13,-14,
18,5,54,26,68,39,84,42,37,35,16,-9,-16,-25,-20,-14,-18,-26,-32,-252,-248,-298,
-296,-304,-297,-290,-293,-293,-290,-289,-293,-297,-297,-353,-353,-364,-361,
-373,-379,-547,-546,-554,-558,-541,-568,-581,-563,-681,-651,-662,-738,-799,
-826,-857,-872,-903,-903,-903,-867,-992,-994,-1108,-1075,-1966,-992,-1108,-956,
-1403,-1533,-1587,-2015,-2340,-2513,-2513,-28342,-29983,-1504,-29981,-2513]} 1.
e4 {[%emt 0:00:43]} e5 {[%emt 0:00:08]} 2. Bc4 {[%emt 0:00:03]} Nf6 {[%emt 0:
00:07]} 3. d4 {[%emt 0:00:07]} exd4 {[%emt 0:00:07]} 4. Nf3 {[%emt 0:00:06]} d5
{[%emt 0:01:03]} 5. exd5 {[%emt 0:00:26]} Nxd5 $6 {[%emt 0:00:29] This move is
bad because white can castle and my king will still be in the center} 6. Qxd4
$6 {[%emt 0:04:28] I don't like this move either since now it is easier for me
to castle} Be6 {[%emt 0:00:56]} 7. O-O {[%emt 0:10:09]} Nc6 {[%emt 0:00:39]} 8.
Bb5 {[%emt 0:01:10]} Nf6 {[%emt 0:01:59]} 9. Bxc6+ {[%emt 0:03:10]} bxc6 {
[%emt 0:00:07]} 10. Qxd8+ {[%emt 0:01:14]} Rxd8 {[%emt 0:00:16] Trading off
the pieces} 11. Be3 {[%emt 0:00:34]} c5 {[%emt 0:00:28]} 12. Nc3 {[%emt 0:00:
48]} a6 {[%emt 0:01:00] I played a6 because i didn't feel comfortable with his
knight coming to b5} 13. Rfd1 {[%emt 0:03:04]} Nd5 {[%emt 0:00:56]} 14. Nxd5 {
[%emt 0:03:53]} Bxd5 {[%emt 0:00:25]} 15. Ne5 {[%emt 0:02:26]} f6 {[%emt 0:01:
38]} 16. Nd3 {[%emt 0:02:19]} c4 {[%emt 0:00:18]} 17. Nf4 {[%emt 0:06:25]} Bf7
{[%emt 0:02:48]} 18. Rxd8+ {[%emt 0:04:26] Trading off more pieces} Kxd8 {
[%emt 0:00:09]} 19. Rd1+ {[%emt 0:03:08]} Kc8 {[%emt 0:00:17]} 20. c3 {[%emt 0:
05:02]} Bd6 {[%emt 0:01:03]} 21. Nd5 $4 {[%emt 0:02:57] This move was a
blunder because of Rd8} Rd8 $3 {[%emt 0:00:53] This is a brilliant move
because it is the only move that is winning in this position as this move will
win some material} 22. Kf1 {[%emt 0:06:21]} (22. Nf4 g5 23. Nh3 Bxh2+ 24. Kxh2
Rxd1) (22. Nb4 Bxh2+ 23. Kxh2 Rxd1) 22... Bf8 $3 {[%emt 0:01:14] This is also
the only winning move in the position as it stops Ne7} (22... Be5 $4 23. Ne7+
Kb8 24. Rxd8+) 23. Nb6+ {[%emt 0:13:50] Trying to get at least a pawn} cxb6 {
[%emt 0:00:07]} 24. Rxd8+ {[%emt 0:00:10]} Kxd8 {[%emt 0:00:02] In this
position there is no hope for white} 25. Bxb6+ {[%emt 0:00:03]} Kd7 {[%emt 0:
00:02]} 26. Ke2 {[%emt 0:00:20]} Kc6 {[%emt 0:00:17]} 27. Bd4 {[%emt 0:00:16]}
a5 {[%emt 0:00:12]} 28. a4 {[%emt 0:00:04]} Be8 {[%emt 0:00:07]} 29. Kd2 {
[%emt 0:01:37]} Kb7 {[%emt 0:00:13]} 30. Kc2 {[%emt 0:00:08]} Bxa4+ {[%emt 0:
00:06]} 31. b3 {[%emt 0:00:13]} Bxb3+ {[%emt 0:00:12]} 32. Kb2 {[%emt 0:00:06]}
a4 {[%emt 0:00:09]} 33. h4 {[%emt 0:00:21]} a3+ {[%emt 0:00:02]} 34. Ka1 {
[%emt 0:00:10]} Kc6 {[%emt 0:00:06]} 35. g4 {[%emt 0:00:05]} Kd5 {[%emt 0:00:
03]} 36. f3 {[%emt 0:00:46]} Bd1 {[%emt 0:00:23]} 37. g5 {[%emt 0:02:07]} fxg5
{[%emt 0:00:13]} 38. hxg5 {[%emt 0:00:17]} Bxf3 {[%emt 0:00:03]} 39. Ka2 {
[%emt 0:00:19]} Ke4 {[%emt 0:00:07]} 40. Kb1 {[%emt 0:02:20]} g6 {[%emt 0:00:
17]} 41. Ka2 {[%emt 0:01:31]} Be7 {[%emt 0:00:07]} 42. Bf6 {[%emt 0:00:21]} Bd6
{[%emt 0:00:04]} 43. Kb1 {[%emt 0:02:30]} Be5 {[%emt 0:00:09]} 44. Ka2 {
[%emt 0:01:03]} Kf5 {[%emt 0:00:11]} 45. Bxe5 {[%emt 0:01:14]} Kxe5 {[%emt 0:
00:02]} 46. Kxa3 {[%emt 0:00:23]} Kf5 {[%emt 0:00:06]} 47. Kb2 {[%emt 0:00:08]}
Kxg5 {[%emt 0:00:03]} 48. Kc2 {[%emt 0:00:20]} Kf4 {[%emt 0:00:03]} 49. Kd2 {
[%emt 0:00:03]} Kg3 {[%emt 0:00:02]} 50. Ke1 {[%emt 0:01:23]} Kg2 {[%emt 0:00:
04] Varin_N won by resignation This is just losing since i will promote my
pawn and there is no hope so my opponent resigned here! This was a very
intense game and i enjoyed it!} (50... Kg2 51. Kd2 h5 52. Ke3 h4 53. Kd4 h3 54.
Kxc4 {[%eval -6003,0]}) 0-1

[Event "Seattle Chess Classic Blitz"]
[Site "Chess.com"]
[Date "2020.08.16"]
[Round "2"]
[White "Lenderman, Aleksandr"]
[Black "Donaldson, John"]
[Result "1-0"]
[ECO "D13"]
[WhiteElo "2717"]
[BlackElo "2420"]
[Annotator "Aleksandr Lenderman"]
[PlyCount "75"]
[EventDate "2020.08.16"]
[EventType "swiss (blitz)"]
[EventRounds "7"]
[TimeControl "300+3"]

{[%evp 0,75,29,23,58,60,47,14,19,30,29,21,25,19,53,24,15,10,27,36,44,72,92,93,
94,11,49,52,27,4,10,11,17,15,29,9,4,-34,-27,-25,-22,-44,-36,-19,-19,-42,-37,
-33,-4,-45,-40,-45,-16,-46,-34,-123,-35,-69,-79,-55,-83,-165,-158,-156,-142,
-156,-150,-158,-104,-105,-23,-38,-11,0,222,242,482,490] In this game I am
playing the legendary US captain, IM John Donaldson, who I've gotten to know
quite well over the years since I coached the US Olympiad two years in a row
and also played in two World Team Championshps for John. This is my first ever
game against him.} 1. Nf3 c5 2. d4 $5 {A tricky move order that I use for my
blitz games. Now, I either get the Smith-Morra Gambit accepted, which I used
to play a lot as a kid, or I get an exchange slav which I also play.} cxd4 3.
c3 d5 (3... dxc3 4. Nxc3 {Is of course principled, but it's tricky to play in
blitz if you don't expect it coming.}) 4. cxd4 Nf6 5. Nc3 Nc6 6. Bf4 a6 7. Rc1
Bf5 8. e3 e6 (8... Rc8 {This is considered theory.}) 9. Qb3 {An important move
to disturb black's harmony.} Na5 $6 {This is imprecise but I didn't take
advantage of it.} 10. Qa4+ Nc6 11. Ne5 Qb6 12. Nxc6 $2 {Missing a chance for a
big advantage.} (12. Bb5 $1 {I looked at this briefly but I didn't think it
was anything special. However, it was very good for white since I simply win
the c6 pawn.} Rc8 13. Bxc6+ bxc6 14. O-O Be7 15. Ne2 $1 $16 {Black is one
tempo short here in his development and that costs him.}) 12... bxc6 {Now
there is simply no knockout punch, and positionally black isn't doing so badly
anymore.} 13. Be2 (13. f3 $5 {Was a better try, which I also missed. This move
opens the f2 square for the king and takes away the e4 square from the knight.}
Be7 14. g4 Bg6 15. Nd1) (13. Nd1 {Right away doesn't work because of} Bb4+)
13... Be7 14. O-O O-O 15. Qb3 (15. Qd1 Qxb2 16. Na4 {Was perhaps a slightly
better try for some initiative.}) 15... Qxb3 16. axb3 Nd7 17. Na4 Rfc8 {
Now black is totally fine. Moreover, I think black's position is easier to
play. I was simply fishing for a plan and from here I am ashamed of the way I
played.} 18. Rc3 $6 {What on earth was this? Just losing a tempo after Bb4. I
saw this earlier and for some reason I blanked out and forgot about it.} (18.
g4 Bg6 19. Kg2 $11) 18... Bb4 19. Rcc1 f6 20. g4 Bg6 21. g5 Kf7 22. h4 $6 {
Continuning on a wrong plan.} (22. gxf6) 22... Bf5 23. Bg3 a5 24. gxf6 gxf6 25.
Bh5+ Bg6 26. Bg4 h5 (26... Ke7) 27. Bh3 $4 {Now this is just very bad. I was
really trying to stop black from playing e5, but this move is just a blunder.}
(27. Be2 $11 e5 28. Rfd1) 27... c5 $4 {Missing the chance.} (27... Bd3 28. Rfd1
Be2 $19 {I guess this game set the tone for me. When you get lucky like this,
you often end up winning the tournament! :)}) 28. dxc5 Bxc5 {Even here, black
is much better.} 29. Rfd1 Bb4 30. Bf1 Bc2 31. Bb5 {I'm just trying to confuse
here.} Bxd1 32. Rxd1 Ne5 33. Nb6 Rab8 $6 (33... Rc5 34. Nxa8 Rxb5 35. Rc1 Bd6 {
Was just crushing for black. My knight on a8 is stranded, and my pawns are
very weak.}) 34. Nxc8 Rxc8 $2 (34... Rxb5 {Was still much better for black.})
35. Be2 Kg6 36. Kf1 $1 {My only good move in the game, a tricky move, which
unexpected yielded an immediate win for me.} Rc2 $4 {I couldn't believe my
luck here.} 37. Bxe5 fxe5 38. Bd3+ {AlexanderL won by resignation. A very poor
game on my part, but sometimes you need to get lucky to win a tournament.} 1-0

[Event "Seattle Chess Classic Blitz"]
[Site "Chess.com"]
[Date "2020.08.16"]
[Round "4"]
[White "Lenderman, Aleksandr"]
[Black "Yip, Carissa"]
[Result "1-0"]
[ECO "E62"]
[WhiteElo "2717"]
[BlackElo "2493"]
[Annotator "Aleksandr Lenderman"]
[PlyCount "77"]
[EventDate "2020.08.16"]
[EventType "swiss (blitz)"]
[EventRounds "7"]
[TimeControl "300+3"]

{[%evp 0,77,24,14,19,2,52,10,15,17,17,20,13,23,37,22,17,22,36,42,54,10,66,-3,
20,19,15,28,22,15,59,55,79,87,79,72,109,67,83,77,71,61,68,64,64,62,65,28,28,41,
41,13,15,14,76,76,72,67,54,6,35,24,24,-84,-54,-54,51,45,59,59,82,110,161,161,
226,233,233,233,261,261] In this game I am playing with white against Carissa
Yip. We are both at 3/3 at the moment.} 1. d4 Nf6 2. c4 g6 3. g3 Bg7 4. Bg2 d6
5. Nf3 O-O 6. Nc3 Bf5 {She plays her Kings Indian, which plays quite often.} 7.
Nh4 Bc8 8. O-O c6 9. e4 e5 10. Nf3 Bg4 11. d5 Na6 12. h3 Bd7 13. Be3 cxd5 14.
cxd5 b5 15. a3 $14 Re8 $6 {I didn't really understand this move.} (15... Nc7)
16. b4 {I was very happy with the outcome out of the opening.} Nc7 17. Nd2 h5
18. Nf3 {An overreaction to her idea.} (18. Nb3 {I should've just continued
with my plan and not be afraid of h4.} h4 (18... Qc8 19. Kh2 h4 20. Na5) 19.
Bg5) 18... Qb8 19. Qd3 Qb7 20. Rab1 Rac8 21. Rfc1 Na8 22. Nd2 a6 23. Nb3 Nb6
24. Na5 (24. Nc5 $1) 24... Qb8 25. a4 Nxa4 26. Nxa4 Rxc1+ 27. Rxc1 bxa4 28. Nc6
Qb5 29. Bf1 {Looked promising in blitz since I saw I was winning the a6 pawn.
However, black had an amazing defence here which we both missed.} (29. Qc2 $16)
29... Qxd3 30. Bxd3 Bxh3 31. Bxa6 (31. f3 {This was better but it would also
allow her to play Ra8 and defend her position for now.} Ra8) 31... Nxe4 32. b5
{I thought this is more or less winning for me because the pawn is unstoppable
but there are hidden dynamic ideas here, which are almost impossible to spot
in a blitz game.} Nc5 (32... f5 $5 33. b6 f4 $1 {Suddenly opening her bishop.}
34. Rc4 $3 {The only move that gives white an advantage. At this point we are
reaching the "impossible for a human to find" territory, especially in a blitz
game.} Bf5 35. gxf4 exf4 36. Bxf4 g5 37. Bc1 Nc5 38. Rxc5 dxc5 39. b7 {And
white should have good winning chances after winning the rook.}) 33. Bxc5 dxc5
34. b6 e4 $6 (34... Bf8 {This still gave a defensive chances.} 35. b7 Bd6 36.
Ra1 Kg7 37. Rxa4 Bd7) 35. b7 e3 36. fxe3 Bf5 (36... a3 37. Bc4) 37. b8=Q Rxb8
38. Nxb8 a3 39. Bc4 {AlexanderL won by resignation. After the smoke cleared I
ended up being up a rook. A nice game for me.} 1-0

[Event "Seattle Chess Classic Blitz"]
[Site "Chess.com"]
[Date "2020.08.17"]
[Round "5"]
[White "Robson, Ray"]
[Black "Lenderman, Aleksandr"]
[Result "1/2-1/2"]
[ECO "C10"]
[WhiteElo "2749"]
[BlackElo "2717"]
[Annotator "Aleksandr Lenderman"]
[PlyCount "91"]
[EventDate "2020.08.16"]
[EventType "swiss (blitz)"]
[EventRounds "7"]
[TimeControl "300+3"]

{[%evp 0,91,23,24,34,34,34,20,48,48,48,56,52,49,31,24,29,27,21,20,14,-22,-1,
-17,-5,-8,39,37,37,37,29,38,29,28,29,20,23,14,18,2,12,3,8,25,32,32,46,43,43,51,
66,31,59,50,50,50,50,0,0,0,42,42,32,32,59,30,62,14,14,0,0,0,0,8,13,-8,66,76,60,
61,126,55,55,46,52,0,0,-7,-19,-11,-11,-14,0,-43] This game against Ray Robson
was ultimately a battle for first place in the blitz event.} 1. e4 e6 2. d4 d5
3. Nd2 dxe4 4. Nxe4 Nd7 {The Rubinstein is my pet opening in blitz these days.}
5. Nf3 Ngf6 6. Nxf6+ Nxf6 7. Bg5 h6 8. Be3 Bd6 9. Bd3 b6 10. Qe2 Bb7 11. O-O-O
Nd5 (11... O-O {Right away is also possible.}) 12. Bd2 Nf4 13. Bxf4 Bxf4+ 14.
Kb1 O-O 15. Be4 Bxe4 16. Qxe4 Qf6 17. h4 Rad8 18. g4 {White starts his
aggressive play against my king.} Bd6 $6 {In blitz, my knee-jerk reaction was
to meet g5 with Qf4, but it was a passive move and a bit of a concession which
gave white the initiative.} (18... c5 {I should've fought for the initiative
myself and not worried about g5.} 19. g5 Qf5 {This position is totally fine
for black.}) 19. g5 Qf4 20. Qe2 h5 $6 (20... c5 {This was still better.}) 21.
g6 fxg6 22. Qxe6+ Kh8 {Here I realized that my desired Qf7? is met with Ng5!
winning the exchange.} (22... Qf7 $2 23. Ng5 Qxe6 24. Nxe6 $16) 23. Ng5 Rf6 (
23... Qf5 {This was better.}) 24. Qc4 Rg8 $6 {An awkward move} (24... Re8) 25.
a3 (25. f3 $1 Qf5 26. Ne4 $14) 25... Qf5 26. Rde1 Bf4 27. Ne6 Bd6 28. f4 $5 {
Fighting for the win.} b5 29. Qb3 a5 (29... c6 $1 {Was strong, preventing d5,
which cements the knight on e6.}) 30. d5 Rb8 31. Rhg1 a4 32. Qf3 Bxf4 33. Ref1
Bd6 34. Qxf5 gxf5 35. Nxg7 Rg8 36. Nxh5 Rxg1 37. Rxg1 Rh6 (37... Rf7 {Was
better.} 38. Ng3 Rg7 39. Ne2 Rxg1+ 40. Nxg1 Kg7 $11) 38. Rg5 f4 39. Rf5 f3 $2 {
This is a mistake which thankfully for me went unpunished, partially because
by now he was getting very low on time, having under 30 seconds.} (39... Kh7
40. Nxf4 Rxh4 41. Ne6 Rh1+ 42. Ka2 Kg6 {Gave better drawing chances.}) 40. Nf4
$2 (40. Nf6 $1 {Was very nasty, with the idea of meeeting Rxh4? with Rg5!!}
Rxh4 $2 41. Rg5 {I think we both missed this.} (41. Rxf3 Rh1+ 42. Ka2 Rh2 {
I thought I'll just have to play this endgame.})) 40... f2 41. Nd3 Rxh4 42.
Rxf2 Rd4 {Now luckily for me I get the pawn back.} 43. Rf5 Kg7 44. Kc1 Kg6 45.
Rf3 Rxd5 46. Kd2 {Game drawn by agreement. A very nice fight and a close shave.
I think it was a well-played game for a blitz game.} 1/2-1/2